Cogmind - Beta 11.1 *** ADVENTURER MODE // 2022.11.24 @ 04:19:52 Player: SuDmit Result: Core destroyed Performance ------------- Evolutions (3) 1500 Regions Visited (10) 2000 Robots Destroyed (171) 855 Value Destroyed (5901) 5901 Prototype IDs (5) 100 Alien Tech Used (0) 0 Bonus (2466) 2466 TOTAL SCORE: 12822 Bonus ------- High Alert Combat Kills 416 Follower Combat Kills 450 Entered Garrisons 600 Used RIF Installer 1000 Cogmind --------- Core Integrity 0/700 Matter 234/300 Energy 61/100 System Corruption 0% Temperature Critical (609) Movement Core (800) Ox15 Location -7/Garrison Parts ------- > --- POWER (1) -------- (None) > --- PROPULSION (2) --- (None) > --- UTILITY (8) ------ Large Storage Unit Trap Scanner Advanced Visual Processing Unit Improved Signal Interpreter Core Shielding Improved Light Armor Plating Relay Coupler [Grunt] (16) > --- WEAPON (2) ------- Heavy Phase Cannon Heavy Phase Cannon > --- INVENTORY (15) --- Structural Scanner Improved Sensor Array Transport Network Coupler Energy Filter Improved Shield Generator Relay Coupler [NC] (51) Relay Coupler [Sentry] (28) Relay Coupler [Demolisher] (39) Relay Coupler [Specialist] (30) System Restoration Module Improved Field Recycling Unit (200) Flak Gun Remote Datajack Peak State ------------ > --- POWER ------------ Enhanced Nuclear Core > --- PROPULSION ------- Light Treads Light Treads > --- UTILITY ---------- Large Storage Unit Advanced Visual Processing Unit Improved Sensor Array Improved Signal Interpreter Energy Filter Improved Medium Armor Plating Improved Shield Generator Relay Coupler [Grunt] > --- WEAPON ----------- Heavy Phase Cannon Heavy Phase Cannon > --- INVENTORY -------- Advanced Thermal Generator Improved Heat Sink Structural Scanner Trap Scanner Transport Network Coupler Core Shielding Relay Coupler [NC] Relay Coupler [Sentry] Relay Coupler [Demolisher] Relay Coupler [Specialist] System Restoration Module Field Recycling Unit Heavy Phase Cannon Flak Gun Remote Datajack [Rating: 49] Favorites ----------- Power Light Nuclear Core Engine Ion Engine Power Core Light Nuclear Core Propulsion Light Treads Treads Light Treads Wheel Wheel Utility Large Storage Unit Device Improved Sensor Array Storage Large Storage Unit Processor Signal Interpreter Hackware Relay Coupler [Grunt] Protection Improved Light Armor Plating Weapon Heavy Phase Cannon Energy Gun Particle Gun Energy Cannon Heavy Phase Cannon Ballistic Gun Light Assault Rifle Launcher Guided Missile Launcher Special Weapon Remote Datajack Build | -11 -10 -10 -9 -9 -9 -9 -7 -7 -7 -7 ------- Run | Scr Mat Min Mat Sto Gar Rec Fac Gar Fac Gar Slots Evolved 6 | . . . 2 . . . 4 . . . Power . | . . . . . . . . . . . Propulsion . | . . . . . . . . . . . Utility 6 | . . . 2 . . . 4 . . . Weapon . | . . . . . . . . . . . Parts Attached 179 | 6 13 15 29 11 2 . 4 17 69 13 Power 13 | 1 1 1 3 . . . . 3 4 . Engine 7 | 1 1 1 2 . . . . 2 . . Core 6 | . . . 1 . . . . 1 4 . Reactor . | . . . . . . . . . . . Propulsion 23 | 2 4 . 6 2 . . . 3 6 . Treads 19 | 1 4 . 6 2 . . . 3 3 . Leg . | . . . . . . . . . . . Wheel 4 | 1 . . . . . . . . 3 . Hover . | . . . . . . . . . . . Flight . | . . . . . . . . . . . Utility 87 | 1 7 6 8 1 2 . 4 3 49 6 Device 56 | . 2 4 6 1 1 . 1 . 38 3 Storage 8 | 1 5 . . . . . . . 2 . Processor 4 | . . . 2 . . . . . 2 . Hackware 3 | . . . . . 1 . 1 . . 1 Protection 16 | . . 2 . . . . 2 3 7 2 Artifact . | . . . . . . . . . . . Weapon 56 | 2 1 8 12 8 . . . 8 10 7 Energy Gun 2 | . 1 . . 1 . . . . . . Energy Cannon 10 | . . . . 1 . . . . 5 4 Ballistic Gun 32 | 2 . 6 10 3 . . . 7 3 1 Ballistic Cannon . | . . . . . . . . . . . Launcher 9 | . . 2 2 3 . . . 1 1 . Special Weapon 3 | . . . . . . . . . 1 2 Impact Weapon . | . . . . . . . . . . . Slashing Weapon . | . . . . . . . . . . . Piercing Weapon . | . . . . . . . . . . . Special Melee Weapon . | . . . . . . . . . . . Unidentified Prototypes 5 | . . . . 4 . . . . 1 . Parts Lost 28 | . 1 . 3 . . . . 11 7 6 Power 5 | . . . 1 . . . . 2 1 1 Propulsion 7 | . . . . . . . . 3 2 2 Utility 11 | . . . 1 . . . . 4 3 3 Weapon 5 | . 1 . 1 . . . . 2 1 . Highest Loss Streak 5 | . 1 . 2 . . . . 5 3 4 To Critical Strikes . | . . . . . . . . . . . Average Slot Usage (%) 95 | . 99 100 98 94 88 88 92 79 98 95 Engine 4 | . 14 14 8 . . . . 2 . . Core 5 | . . . 1 11 11 11 7 3 6 7 Treads 18 | . 25 28 21 22 22 22 15 12 12 12 Wheel 1 | . 2 . . . . . . . 2 . Device 15 | . 10 8 19 21 18 11 15 1 20 8 Storage 10 | . 16 14 11 11 11 11 7 7 7 7 Processor 9 | . . . 13 11 11 11 7 7 14 15 Hackware 5 | . . . . . 3 11 15 15 9 4 Protection 5 | . . 5 . . . . 15 18 7 22 Energy Cannon 4 | . . . . . . . . . 11 10 Ballistic Gun 9 | . 24 20 21 10 . . . 5 . 1 Launcher 2 | . . 5 . 5 11 11 7 4 1 . Naked Turns . | . . . . . . . . . . . Heaviest Build 69 | 13 30 33 33 42 42 41 46 46 69 62 Greatest Support 46 | 20 40 40 40 46 46 46 46 46 40 40 Greatest Overweight (x) 13 | 2 1 . 1 1 . . . 10 13 2 Average Overweight (x) . | . . . . . . . . . 1 1 Largest Inventory Capacity 25 | 8 25 15 15 15 15 15 15 15 15 15 Average Capacity 14 | 6 13 15 15 15 15 15 15 15 15 15 Most Carried 15 | 2 15 15 15 15 15 15 14 13 15 15 Average Carried 13 | . 11 14 14 14 13 14 11 11 14 14 Final Capacity 15 | 8 15 15 15 15 15 15 15 15 15 15 Final Carried 15 | 2 15 15 15 15 15 15 11 13 15 13 Class Distribution -------------------- 30% | Mutant 29% | Scavenger-Mutant 15% | Bothacker-Skirmisher 15% | Bothacker-Mutant 9% | Scavenger-Skirmisher Dominant Class ---------------- Mutant | -10/Materials Mutant | -10/Mines Scavenger-Skirmisher | -9/Materials Scavenger-Mutant | -9/Storage Mutant | -9/Garrison Mutant | -9/Recycling Mutant | -7/Factory Scavenger-Mutant | -7/Garrison Bothacker-Skirmisher | -7/Factory Bothacker-Mutant | -7/Garrison Resources | -11 -10 -10 -9 -9 -9 -9 -7 -7 -7 -7 ----------- Run | Scr Mat Min Mat Sto Gar Rec Fac Gar Fac Gar Matter Collected 4166 | 243 517 467 505 297 149 140 . 736 1008 104 Remotely . | . . . . . . . . . . . Salvage Created 5250 | . 729 230 777 163 242 82 . 535 2103 389 Parts 342 | . 55 19 61 16 25 5 . 41 100 20 Haulers Intercepted 7 | . . . 1 1 . . . . 5 . Recyclers Shooed 1 | . 1 . . . . . . . . . Parts Field Recycled 22 | . . . . . . . . . 22 . Retrieved Matter 320 | . . . . . . . . . 320 . Parts Self-Destructed . | . . . . . . . . . . . Prevented . | . . . . . . . . . . . Kills | -11 -10 -10 -9 -9 -9 -9 -7 -7 -7 -7 ------- Run | Scr Mat Min Mat Sto Gar Rec Fac Gar Fac Gar Combat Hostiles Destroyed 135 | . 16 12 21 4 14 5 . 23 30 10 Melee 1 | . . . . . . 1 . . . . Guns 63 | . 16 12 15 1 . . . 13 4 2 Cannons 29 | . . . . . . . . . 21 8 AOE 40 | . . . 6 3 14 4 . 10 3 . Classes Destroyed 15 | . 6 . 3 1 . 1 . 1 3 . Worker 9 | . 1 . 2 4 . . . . 2 . Builder 2 | . 1 . . . . . . . 1 . Tunneler 2 | . . . . . . . . . 2 . Hauler 7 | . . . 1 1 . . . . 5 . Recycler 5 | . 1 . . . . 1 . . 3 . Operator 1 | . . . . 1 . . . . . . Drone 5 | . . . . . . 5 . . . . Watcher 10 | . 2 . 1 1 . . . . 6 . Swarmer 47 | . 3 10 7 1 7 . . 16 . 3 Grunt 48 | . 13 2 7 2 6 . . . 15 3 Brawler 1 | . . . 1 . . . . . . . Duelist 2 | . . . . . . . . . 1 1 Sentry 22 | . . . 6 1 1 . . 6 6 2 Hunter 2 | . . . . . . . . 1 1 . Programmer 8 | . . . . . . . . . 7 1 Best Kill Streak 12 | . 5 3 12 3 4 4 . 8 7 6 Combat Bots Only 10 | . 3 3 10 2 4 3 . 8 5 6 Max Kills in Single Turn 5 | . 1 1 5 3 3 1 . 3 3 1 Gunslinging 1 | . . . 1 . . . . . . . Exploded 4 | . . . 4 1 3 1 . 3 2 . Melee 1 | . . . . . . 1 . . . . Uniques/NPCs Destroyed . | . . . . . . . . . . . Combat | -11 -10 -10 -9 -9 -9 -9 -7 -7 -7 -7 -------- Run | Scr Mat Min Mat Sto Gar Rec Fac Gar Fac Gar Damage Taken 6142 | . 666 191 639 56 10 . . 1934 1622 1024 Core 1017 | . 139 48 75 12 . . . 245 240 258 Absorbed by Shields 45 | . . . . . . . . . 45 . Redirected to Shielding 103 | . . 4 . . . . . 31 . 68 Regen/Repaired (Parts) 212 | . 91 . 86 . . . . . 35 . Core Remaining (%) 67 | 100 . 25 . . . 78 . . . . Volleys Fired 350 | . 66 26 49 15 11 5 . 54 91 33 Largest 2 | . 2 2 2 2 1 1 . 2 2 2 Hottest 180 | . 85 85 53 53 39 39 . 51 180 180 Shots Fired 635 | . 132 51 97 19 11 5 . 92 172 56 Gun 382 | . 132 38 93 9 . . . 77 21 12 Cannon 184 | . . . . . . . . . 142 42 Launcher 66 | . . 13 4 10 11 5 . 15 8 . Special 3 | . . . . . . . . . 1 2 Kinetic 364 | . 122 30 93 9 . . . 77 21 12 Thermal 202 | . 10 8 . . . . . . 142 42 Explosive 66 | . . 13 4 10 11 5 . 15 8 . Electromagnetic . | . . . . . . . . . . . Robot Hit Streak 37 | . 22 17 26 3 4 9 . 37 32 15 Robot Miss Streak 6 | . 1 1 2 2 . . . 6 2 3 Penetration Max . | . . . . . . . . . . . Secondary Targets 8 | . 1 2 2 . . . . 3 . . Max Gunslinging Chain 1 | . 1 1 1 . . . . 1 . . Shots Hit Robots 465 | . 108 32 76 5 1 5 . 68 127 43 Core Hits 309 | . 39 21 41 11 15 4 . 74 81 23 Critical Kills 4 | . . 1 2 . . . . . 1 . Critical Parts Destroyed 5 | . 2 . 1 . . . . 2 . . Critical Strikes 9 | . 2 1 3 . . . . 2 1 . Meltdown 1 | . . . . . . . . . 1 . Destroy 8 | . 2 1 3 . . . . 2 . . Melee Attacks . | . . . . . . . . . . . Impact . | . . . . . . . . . . . Slashing . | . . . . . . . . . . . Piercing . | . . . . . . . . . . . Sneak Attacks . | . . . . . . . . . . . Combat Hostiles . | . . . . . . . . . . . Follow-up Attacks . | . . . . . . . . . . . Damage Inflicted 13510 | . 1198 430 1442 802 846 416 . 2000 5038 1338 Guns 4416 | . 1183 327 997 65 . . . 1119 480 245 Cannons 4968 | . . . . . . . . . 3875 1093 Explosions 4083 | . . 103 445 731 846 394 . 881 683 . Melee . | . . . . . . . . . . . Ramming 43 | . 15 . . 6 . 22 . . . . Kinetic 4175 | . 1055 214 997 65 . . . 1119 480 245 Thermal 5498 | . 128 113 . . . . . . 4164 1093 Explosive 3778 | . . 103 445 731 846 394 . 881 378 . Electromagnetic 16 | . . . . . . . . . 16 . Impact . | . . . . . . . . . . . Slashing . | . . . . . . . . . . . Piercing . | . . . . . . . . . . . Highest Corruption 2 | . . . . 1 1 1 . . 2 . Average Corruption 1 | . . . . 1 1 1 . . 1 . Corruption Purged 5 | . . . . . . . . . 5 . Corruption Blocked . | . . . . . . . . . . . Effects 8 | . . . . 2 2 1 . . 3 . Message Errors 1 | . . . . . . . . . 1 . Matter Fused 2 | . . . . . 1 1 . . . . Heat Flow Errors 1 | . . . . . 1 . . . . . Data Loss (minor) 2 | . . . . 1 . . . . 1 . Data Loss (major) 1 | . . . . . . . . . 1 . Weapon Failures 1 | . . . . 1 . . . . . . Overload Shots . | . . . . . . . . . . . Overflow Damage 352 | . . . 5 30 27 38 . . 219 33 Projectiles 191 | . . . . . . . . . 158 33 Explosions 161 | . . . 5 30 27 38 . . 61 . Melee . | . . . . . . . . . . . Knockbacks . | . . . . . . . . . . . Impact . | . . . . . . . . . . . Kinetic . | . . . . . . . . . . . Secondary . | . . . . . . . . . . . Self-Inflicted Damage 84 | . 1 . 78 5 . . . . . . Shots 4 | . . . 3 1 . . . . . . Rammed 7 | . 3 . . 1 . 3 . . . . Targets Rammed 9 | . 4 . . 1 . 4 . . . . Kicked . | . . . . . . . . . . . Crushed 2 | . 1 . . . . 1 . . . . Highest Temperature 609 | . 228 101 19 6 86 . . 48 468 609 Average Temperature 116 | . 39 31 4 6 47 . . 18 121 235 Received Heat Transfer 2393 | . 441 42 252 42 . . . 492 764 360 Effects 24 | . . . . . . . . . 6 18 Shutdowns 5 | . . . . . . . . . 1 4 Interference 12 | . . . . . . . . . 4 8 Short Circuit 2 | . . . . . . . . . . 2 Damage (minor) 1 | . . . . . . . . . 1 . Damage (major) 2 | . . . . . . . . . . 2 Damage (core) 2 | . . . . . . . . . . 2 Siege Activations . | . . . . . . . . . . . Robots Corrupted . | . . . . . . . . . . . Combat Hostiles . | . . . . . . . . . . . Parts Fried . | . . . . . . . . . . . Impact Corruptions . | . . . . . . . . . . . Robots Melted 2 | . . . . . . . . . 2 . Combat Hostiles 2 | . . . . . . . . . 2 . Parts Melted 17 | . . 1 . . . . . . 15 1 Heat Transferred 5805 | . 296 259 . . . . . . 4122 1128 Parts Sabotaged . | . . . . . . . . . . . Parts Stolen . | . . . . . . . . . . . Parts Stripped . | . . . . . . . . . . . Power Chain Reactions . | . . . . . . . . . . . Missiles Intercepted . | . . . . . . . . . . . Alert | -11 -10 -10 -9 -9 -9 -9 -7 -7 -7 -7 ------- Run | Scr Mat Min Mat Sto Gar Rec Fac Gar Fac Gar Peak Influence 1090 | . 276 348 563 457 796 465 968 1090 495 181 Initial 964 | . . 28 . 100 105 306 964 597 495 14 Average 262 | . 103 149 252 256 530 344 964 929 162 80 Maximum Alert Level 3 | . 1 1 2 2 3 2 3 3 2 . Low Security (%) 52 | 100 79 78 36 26 12 29 . . 64 100 Level 1 27 | . 20 21 42 66 20 23 . . 25 . Level 2 10 | . . . 20 6 34 46 . 10 10 . Level 3 9 | . . . . . 33 . 100 89 . . Level 4 . | . . . . . . . . . . . Level 5 . | . . . . . . . . . . . High Security . | . . . . . . . . . . . Max Security . | . . . . . . . . . . . Squads Dispatched 21 | . 3 . 2 3 . . 1 . 12 . Investigation 10 | . 3 . 1 2 . . 1 . 3 . Extermination 7 | . . . . . . . . . 7 . Reinforcement 4 | . . . 1 1 . . . . 2 . Assault . | . . . . . . . . . . . Garrison . | . . . . . . . . . . . Intercept . | . . . . . . . . . . . Searches Triggered . | . . . . . . . . . . . Construction Impeded 1 | . . . . . . . . . 1 . Haulers Reinforced . | . . . . . . . . . . . Active Scanning Responses . | . . . . . . . . . . . Cargo Convoy Interrupts . | . . . . . . . . . . . Stealth | -11 -10 -10 -9 -9 -9 -9 -7 -7 -7 -7 --------- Run | Scr Mat Min Mat Sto Gar Rec Fac Gar Fac Gar Distress Signals 11 | . 4 . 2 3 . . . . 2 . Communications Jammed . | . . . . . . . . . . . Distress Signals . | . . . . . . . . . . . Times Spotted 196 | . 31 22 30 21 6 12 . 20 39 15 Peak Tracking Total 8 | . 5 3 8 3 4 4 . 8 6 4 Tactical Retreats 9 | . 3 1 . 1 . . . . 2 2 Traps | -11 -10 -10 -9 -9 -9 -9 -7 -7 -7 -7 ------- Run | Scr Mat Min Mat Sto Gar Rec Fac Gar Fac Gar Traps Triggered 10 | . 2 . 4 . . . . 4 . . Indirectly . | . . . . . . . . . . . Trap Hack Attempts . | . . . . . . . . . . . Triggered . | . . . . . . . . . . . Disarmed . | . . . . . . . . . . . Reprogrammed . | . . . . . . . . . . . Reused . | . . . . . . . . . . . Traps Extracted . | . . . . . . . . . . . Installed . | . . . . . . . . . . . Triggered . | . . . . . . . . . . . Machines | -11 -10 -10 -9 -9 -9 -9 -7 -7 -7 -7 ---------- Run | Scr Mat Min Mat Sto Gar Rec Fac Gar Fac Gar Machines Disabled 26 | . . . . 4 2 1 . 3 15 1 Max in Single Turn 13 | . . . . 1 1 1 . 2 13 1 Garrison Relay 4 | . . . . . 2 . . 1 . 1 Machines Sabotaged . | . . . . . . . . . . . Garrisons Compromised . | . . . . . . . . . . . Overloaded Fab Kills . | . . . . . . . . . . . Hacking | -11 -10 -10 -9 -9 -9 -9 -7 -7 -7 -7 --------- Run | Scr Mat Min Mat Sto Gar Rec Fac Gar Fac Gar Machines Accessed 42 | . 11 . 7 7 . 3 1 . 13 . Terminals 28 | . 8 . 6 6 . 3 . . 5 . Fabricators 3 | . . . . . . . . . 3 . Repair Stations 4 | . 1 . 1 . . . . . 2 . Recycling Units 4 | . 2 . . . . . . . 2 . Scanalyzers . | . . . . . . . . . . . Garrison Access 3 | . . . . 1 . . 1 . 1 . Total Hacks 134 | . 36 . 28 20 . 8 5 . 37 . Successful 92 | . 26 . 17 12 . 7 2 . 28 . Failed 41 | . 10 . 10 8 . 1 3 . 9 . Catastrophic 1 | . . . 1 . . . . . . . Database Lockouts 1 | . . . 1 . . . . . . . Manual 123 | . 40 . 27 21 . 8 4 . 23 . Terminals 89 | . 25 . 24 18 . 8 . . 14 . Fabricators 7 | . . . . . . . . . 7 . Repair Stations 12 | . 3 . 4 . . . . . 5 . Recycling Units 14 | . 8 . . . . . . . 6 . Scanalyzers . | . . . . . . . . . . . Garrison Access 12 | . . . . 2 . . 5 . 5 . Terminal Hacks 25 | . 8 . 6 4 . 3 . . 4 . Record 1 | . . . . . . . . . 1 . Robot Analysis 10 | . 5 . 4 . . . . . 1 . Level Access Points 1 | . 1 . . . . . . . . . Branch Access Points 4 | . 1 . 1 1 . . . . 1 . Terminal Index 2 | . 1 . 1 . . . . . . . Unreport Threat 3 | . . . . 1 . 2 . . . . Security Status 1 | . . . . 1 . . . . . . Recall Investigation 1 | . . . . 1 . . . . . . Zone Layout 2 | . . . . . . 1 . . 1 . Fabricator Hacks 3 | . . . . . . . . . 3 . Network Status 2 | . . . . . . . . . 2 . Build 1 | . . . . . . . . . 1 . Repair Station Hacks 11 | . 3 . 4 . . . . . 4 . Scan Component 6 | . 2 . 2 . . . . . 2 . Repair 5 | . 1 . 2 . . . . . 2 . Recycling Unit Hacks 3 | . 2 . . . . . . . 1 . Retrieve Components 3 | . 2 . . . . . . . 1 . Scanalyzer . | . . . . . . . . . . . Garrison Access Hacks 4 | . . . . 1 . . 1 . 2 . Unlock Access 3 | . . . . 1 . . 1 . 1 . Coupler Status 1 | . . . . . . . . . 1 . Unauthorized Hacks 46 | . 13 . 7 7 . 4 1 . 14 . Terminals 31 | . 9 . 7 6 . 4 . . 5 . Botnet 26 | . 8 . 6 5 . 3 . . 4 . Operators 5 | . 1 . 1 1 . 1 . . 1 . Fabricators 4 | . . . . . . . . . 4 . Report 2 | . . . . . . . . . 2 . Haulers 1 | . . . . . . . . . 1 . Download 1 | . . . . . . . . . 1 . Repair Stations . | . . . . . . . . . . . Recycling Units 7 | . 4 . . . . . . . 3 . Reject 4 | . 2 . . . . . . . 2 . Mask 3 | . 2 . . . . . . . 1 . Scanalyzers . | . . . . . . . . . . . Garrison Access 4 | . . . . 1 . . 1 . 2 . Broadcast 1 | . . . . . . . . . 1 . Watchers 3 | . . . . 1 . . 1 . 1 . Data Cores Recovered 1 | . . . . 1 . . . . . . Used . | . . . . . . . . . . . Hacking Detections 39 | . 11 . 7 6 . 3 1 . 11 . Full Trace Events 10 | . 4 . 1 1 . 1 1 . 2 . Feedback Events 1 | . . . . 1 . . . . . . Corruption 1 | . . . . 1 . . . . . . Feedback Blocked . | . . . . . . . . . . . Robot Schematics Acquired . | . . . . . . . . . . . Robots Built . | . . . . . . . . . . . Authchips . | . . . . . . . . . . . Time . | . . . . . . . . . . . Total Robot Build Rating . | . . . . . . . . . . . Part Schematics Acquired . | . . . . . . . . . . . Parts Built 2 | . . . . . . . . . 2 . Authchips . | . . . . . . . . . . . Time 58 | . . . . . . . . . 58 . Total Part Build Rating 14 | . . . . . . . . . 14 . Parts Repaired 5 | . 1 . 2 . . . . . 2 . Time 118 | . 13 . 70 . . . . . 35 . Parts Recycled . | . . . . . . . . . . . Recycled Matter . | . . . . . . . . . . . Retrieved Matter . | . . . . . . . . . . . Retrieved Components 21 | . 11 . . . . . . . 10 . Parts Scanalyzed . | . . . . . . . . . . . Part Schematics Acquired . | . . . . . . . . . . . Parts Damaged . | . . . . . . . . . . . Bothacking | -11 -10 -10 -9 -9 -9 -9 -7 -7 -7 -7 ------------ Run | Scr Mat Min Mat Sto Gar Rec Fac Gar Fac Gar Used RIF Installer 2 | . . . . . 1 . . 1 . . Threat Obfuscator 1 | . . . . . . . . 1 . . Robots Hacked 3 | . . . . . . . . . 1 2 Non-combat 1 | . . . . . . . . . 1 . Combat 2 | . . . . . . . . . . 2 Robot Hacks Applied 3 | . . . . . . . . . 1 2 parse_system 1 | . . . . . . . . . 1 . formatsys_high 2 | . . . . . . . . . . 2 Relay Couplers Released 17 | . . . . . 9 . . 5 . 3 Machine Destruction 17 | . . . . . 9 . . 5 . 3 Attached 2 | . . . . . 1 . . . . 1 Fabnet Peak Effective % . | . . . . . . . . . . . Robots Rewired . | . . . . . . . . . . . Allies Hacked 1 | . . . . . . . . . . 1 Hacks Repelled . | . . . . . . . . . . . Allies | -11 -10 -10 -9 -9 -9 -9 -7 -7 -7 -7 -------- Run | Scr Mat Min Mat Sto Gar Rec Fac Gar Fac Gar Total Allies 6 | . . 3 . 1 . . . . . 2 Largest Group 3 | . . 3 3 1 1 . . . . 2 Highest-Rated Group 100 | . . 40 40 100 95 . . . . 32 Highest-Rated Ally 100 | . . 16 16 100 95 . . . . 16 Total Orders 35 | . . . . 14 14 2 . 5 . . EXPLORE 24 | . . . . 14 6 1 . 3 . . RETURN 11 | . . . . . 8 1 . 2 . . Ally Attacks 73 | . . 31 3 30 . . . . . 9 Total Damage 1201 | . . 314 24 791 . . . . . 72 Kills 29 | . . 11 . 17 . . . . . 1 Allies Corrupted . | . . . . . . . . . . . Allies Melted . | . . . . . . . . . . . Intel | -11 -10 -10 -9 -9 -9 -9 -7 -7 -7 -7 ------- Run | Scr Mat Min Mat Sto Gar Rec Fac Gar Fac Gar Robot Analysis Total 10 | . 5 . 4 . . . . . 1 . Derelict Logs Recovered 2 | . . 2 . . . . . . . . Drone Launches 54 | . . . . 38 12 1 1 2 . . Drone Recoveries 38 | . . . . 24 11 1 . 2 . . Exploration | -11 -10 -10 -9 -9 -9 -9 -7 -7 -7 -7 ------------- Run | Scr Mat Min Mat Sto Gar Rec Fac Gar Fac Gar Turns Passed 11937 | 57 1372 1312 1443 1398 623 310 19 1014 3936 453 Spaces Moved 5074 | 46 689 646 630 607 299 167 10 386 1484 110 Core 17 | 13 . . . . . . . 2 2 . Treads 4473 | 3 555 646 630 607 299 167 10 384 1062 110 Legs . | . . . . . . . . . . . Wheels 584 | 30 134 . . . . . . . 420 . Hover . | . . . . . . . . . . . Flight . | . . . . . . . . . . . Fastest Speed 50 | 50 100 160 160 160 160 160 160 160 95 240 Average Speed 178 | 101 150 160 160 180 160 160 160 207 201 250 Slowest Speed 700 | 160 160 160 240 240 160 160 160 550 700 320 Overloaded Moves . | . . . . . . . . . . . Propulsion Burnouts . | . . . . . . . . . . . Robots Hopped . | . . . . . . . . . . . Cave-ins Triggered . | . . . . . . . . . . . Exploration Rate (%) 57 | 4 84 98 72 95 43 99 1 64 38 32 Regions Visited 10 Branch Regions 3 Pre-discovered Areas 4 | . . 3 . 1 . . . . . . Known Exits Taken 7 | . 1 1 1 1 . 1 1 . 1 . Unknown Exits Taken 1 | 1 . . . . . . . . . . Scrap Searched 2 | . . 2 . . . . . . . . Spaces Dug 6 | . . . . . . . . . 6 . Terrain Destroyed 444 | . . 19 25 115 110 36 . 61 72 6 Melee . | . . . . . . . . . . . Projectile 25 | . . . . . . . . . 19 6 AOE 419 | . . 19 25 115 110 36 . 61 53 . Terrain Rammed . | . . . . . . . . . . . Walls Destroyed . | . . . . . . . . . . . Machines Disabled . | . . . . . . . . . . . Actions | -11 -10 -10 -9 -9 -9 -9 -7 -7 -7 -7 --------- Run | Scr Mat Min Mat Sto Gar Rec Fac Gar Fac Gar Total 7341 | 53 900 878 975 900 434 203 13 512 2244 229 Wait 1560 | . 102 179 246 228 119 26 . 38 551 71 Move 5063 | 45 688 645 629 606 297 166 9 385 1483 110 Hop . | . . . . . . . . . . . Pick Up 75 | 2 18 4 8 12 2 1 . 6 22 . Fast Attach 42 | 6 2 . 10 5 . . . 6 12 1 Attach 28 | . 1 . 4 2 1 . 4 7 7 2 Detach 6 | . . . . . 1 . . 3 2 . Swap 109 | . 10 15 15 4 1 . . 4 50 10 Drop 84 | . 9 8 14 20 2 1 . 3 26 1 Fire 350 | . 66 26 49 15 11 5 . 54 91 33 Melee . | . . . . . . . . . . . Ram 1 | . 1 . . . . . . . . . Kick . | . . . . . . . . . . . Crush 8 | . 3 . . 1 . 4 . . . . Escape Stasis 6 | . . . . . . . . 6 . . Rewire 2 | . . 1 . . . . . . . 1 Trap . | . . . . . . . . . . . Miscellaneous 7 | . . . . 7 . . . . . . Route ------- -11/Scrapyard -10/Materials (discovered 5 exits: *Mat x3 / *Min x2) -10/Mines (discovered 2 exits: *Mat x2) -9/Materials (discovered 5 exits: [*Mat x2] / *Min / *Sto x2) -9/Storage (discovered 3 exits: [*Mat] / *Rec / Gar) -9/Garrison -9/Recycling -7/Factory -7/Garrison (discovered 2 exits: *Fac x2) -7/Factory (discovered 3 exits: *Low x2 / Gar) -7/Garrison History --------- Turn | Location | Event 14 | -11/Scrapyard | Discovered new exit (range 15) 58 | -11/Scrapyard | Entered Materials 80 | -10/Materials | Identified exit to Mines 315 | -10/Materials | Build established: Mutant 775 | -10/Materials | Discovered new exit (range 7) 1057 | -10/Materials | Core integrity fell below 50% 1130 | -10/Materials | Discovered new exit (range 13) 1173 | -10/Materials | Identified exit to Materials 1221 | -10/Materials | Repaired Lgt. Treads 1430 | -10/Materials | Entered Mines 1738 | -10/Mines | Received a Rocket Launcher from a helpful Derelict 1740 | -10/Mines | Learned location of Mines (-9) 1797 | -10/Mines | Discovered exit to Materials (range 7) 1877 | -10/Mines | Assisted by bots powering up and referring to "LRC-V3" 2003 | -10/Mines | Learned location of Recycling (-9) 2016 | -10/Mines | Discovered exit to Materials (range 3) 2163 | -10/Mines | Excavation squad dispatched 2163 | -10/Mines | A large section of the Mines collapsed 2614 | -10/Mines | Learned location of Storage (-9) 2722 | -10/Mines | Build established: Scavenger-Mutant 2742 | -10/Mines | Entered Materials 2742 | -9/Materials | Accompanied by 3 allies 2742 | -9/Materials | Evolved 2 slots: Utility x2 2746 | -9/Materials | Discovered new exit (range 7) 3043 | -9/Materials | Build established: Scavenger-Skirmisher 3093 | -9/Materials | Discovered new exit (range 4) 3211 | -9/Materials | Identified exit to Mines 3211 | -9/Materials | Identified exit to Storage 3316 | -9/Materials | Destroyed 10 combat bots 3347 | -9/Materials | Central database locked down 3795 | -9/Materials | Repaired Hvy. Assault Rifle 3835 | -9/Materials | Repaired Imp. Sensor Array 3953 | -9/Materials | Discovered new exit (range 16) 4185 | -9/Materials | Entered Storage 4188 | -9/Storage | Build established: Scavenger-Mutant 4206 | -9/Storage | Met 01-MTF 4555 | -9/Storage | Discovered new exit (range 4) 4557 | -9/Storage | Identified exit to Recycling 4658 | -9/Storage | Found Prototype Launcher 4666 | -9/Storage | Identified Gui. Missile Launcher 4701 | -9/Storage | Identified exit to Garrison 5273 | -9/Storage | Discovered new exit (range 16) 5286 | -9/Storage | Learned location of Armory (-4) 5583 | -9/Storage | Entered Garrison 5583 | -9/Garrison | Accompanied by 1 ally (01-MTF) 5588 | -9/Garrison | 01-MTF left 5596 | -9/Garrison | Triggered checkpoint 5606 | -9/Garrison | Build established: Mutant 5646 | -9/Garrison | Triggered checkpoint 5652 | -9/Garrison | Triggered checkpoint 5787 | -9/Garrison | Garrison Relay disabled 5964 | -9/Garrison | Triggered checkpoint 5971 | -9/Garrison | Discovered exit to Recycling (range 20) 6027 | -9/Garrison | Installed Relay Interface Framework 6206 | -9/Garrison | Entered Recycling 6233 | -9/Recycling | Spotter reported a threat 6246 | -9/Recycling | Spotter reported a threat 6247 | -9/Recycling | Spotter reported a threat 6255 | -9/Recycling | Spotter reported a threat 6278 | -9/Recycling | Spotter reported a threat 6286 | -9/Recycling | Spotter reported a threat 6290 | -9/Recycling | Discovered new exit (range 69) 6300 | -9/Recycling | Spotter reported a threat 6303 | -9/Recycling | Spotter reported a threat 6307 | -9/Recycling | Spotter reported a threat 6317 | -9/Recycling | Spotter reported a threat 6353 | -9/Recycling | Spotter reported a threat 6356 | -9/Recycling | Spotter reported a threat 6360 | -9/Recycling | Spotter reported a threat 6370 | -9/Recycling | Spotter reported a threat 6408 | -9/Recycling | Spotter reported a threat 6413 | -9/Recycling | Spotter reported a threat 6418 | -9/Recycling | Spotter reported a threat 6444 | -9/Recycling | Spotter reported a threat 6466 | -9/Recycling | Spotter reported a threat 6486 | -9/Recycling | Spotter reported a threat 6514 | -9/Recycling | Identified exit to Factory 6516 | -9/Recycling | Entered Factory 6516 | -7/Factory | Evolved 4 slots: Utility x4 6533 | -7/Factory | Identified exit to Garrison 6535 | -7/Factory | Entered Garrison 6535 | -7/Garrison | Accompanied by 1 ally 6614 | -7/Garrison | Triggered checkpoint 6616 | -7/Garrison | Triggered checkpoint 6693 | -7/Garrison | Lost 5 parts (1p1n3u) 6711 | -7/Garrison | Triggered checkpoint 6759 | -7/Garrison | Destroyed 8 combat bots 6834 | -7/Garrison | Triggered checkpoint 6842 | -7/Garrison | Discovered new exit (range 10) 7003 | -7/Garrison | Lost 5 parts (1p2n2w) 7016 | -7/Garrison | Triggered checkpoint 7153 | -7/Garrison | Triggered checkpoint 7291 | -7/Garrison | Build established: Scavenger-Mutant 7386 | -7/Garrison | Discovered new exit (range 12) 7419 | -7/Garrison | Identified exit to Factory 7436 | -7/Garrison | Expanded RIF knowledge: Threat Obfuscation 7549 | -7/Garrison | Entered Factory 8478 | -7/Factory | Build established: Bothacker-Mutant 8980 | -7/Factory | Core integrity fell below 50% 9015 | -7/Factory | Lost 3 parts (2n1u) 9318 | -7/Factory | Repaired Imp. Cooling System 9331 | -7/Factory | Repaired Core Shielding 9528 | -7/Factory | Fabricated Adv. Thermal Generator (x2) 9807 | -7/Factory | Build established: Bothacker-Skirmisher 10193 | -7/Factory | Identified exit to Garrison 10720 | -7/Factory | Identified exit to Lower Caves 11485 | -7/Factory | Entered Garrison 11574 | -7/Garrison | Triggered checkpoint 11658 | -7/Garrison | Garrison Relay disabled 11772 | -7/Garrison | Triggered checkpoint 11777 | -7/Garrison | Build established: Bothacker-Mutant 11819 | -7/Garrison | Core integrity fell below 20% 11880 | -7/Garrison | Triggered checkpoint 11939 | -7/Garrison | Core destroyed Last Messages --------------- 11901_ P-60 Hacker destroyed. 11903_ Trooper 4b destroyed. 11908_ Lgt. Treads destroyed. 11910_ S-27 Virus destroyed. 11915_ Flak Gun broken. 11915_ Overheating: Short circuit. 11916_ Imp. Medium Armor Plating destroyed. 11918_ Overheating: System interference. 11918_ Trap Scanner temporarily disabled. 11918_ Hvy. Phase Cannon temporarily disabled. 11918_ Imp. Signal Interpreter temporarily disabled. 11922_ Weapon Shielding destroyed. 11923_ S-27 Virus destroyed. 11931_ L-41 Fighter destroyed. 11933_ Power failure, Enh. Nuclear Core shutdown. 11934_ Overheating: System interference. 11934_ Hvy. Phase Cannon temporarily disabled. 11936_ Enh. Nuclear Core destroyed. 11938_ G-47 Trooper destroyed. 11939_ Overheating: Core damaged (-140). Map ----- +----------------------------------------------------+ | ??????????????????????????????????# ##########??? | | ??????????????????????????????????# #???????????? | | ??????????????????????????????????# #???????????? | | ??????????????????????????????????# #???????????? | | ??????????????????????????????????# #??#######??? | | ??????????????????????????????????# #??#"" ""#??? | | ??????????????????????????????????# #??## !!###?? | | ??????????????????????????????????# #??# #?? | | ??????????????????????????????????# #??###### #?? | | ??????????????????????????###?????# #???????# #?? | | ???????????????????????####"####### #???????# #?? | | ???????????????????????# [% #???????# ### | | ???????????????????????# ! #???????# # | | ???????????????????????# ]######## #???????# # | | ???????????????????????# ##??????# #???????# # | | ???????????????????????# #???????# =######### ### | | ???????????????????????# #???????# [%* %="#? | | ?????????????????####??# #???????# ############? | | ?????????????????# ?# #???????# #???????????? | | ????????????## ## ## ##??????#^^#???????????? | | ???????????## ######## #???????????? | | ???????? #???????????? | | ???????? #???????????? | | ??????????### ## ## ###########???????????? | | ????????????#????# #;[ ###???????????????????? | | ????????????" %@ #???????????????????? | | ????????????" * #???????????????????? | | ????????????" ! %[ #???????????????????? | | ????????????" ==%= #???????????????????? | | ????????????# #; =%!## ###???????????????????? | | ????????????# ## ?; %=#?????????????????????? | | ????????????? ?? g ? [* ?????????????????????? | | ?????????????? %* ? =%%= ?????????????????????? | | ????????????? ! ? *==#?????????????????????? | | ?????????????# ##""??#;#+##?????????????????????? | | ?????????????? ???????###%???????????????????????? | | ????????????????????????#[???????????????????????? | | ????????????????????????# ???????????????????????? | | ????????????????????????? ???????????????????????? | | ????????????????????????? ???????????????????????? | | ????????????????????????? ???????????????????????? | | ?????????????????????????????????????????????????? | | ?????????????????????????????????????????????????? | | ?????????????????????????????????????????????????? | | ?????????????????????????????????????????????????? | | ?????????????????????????????????????????????????? | | ?????????????????????????????????????????????????? | | ?????????????????????????????????????????????????? | | ?????????????????????????????????????????????????? | | ?????????????????????????????????????????????????? | +----------------------------------------------------+ Best States ------------- Heat Dissipation 61 Coolant Potential 65 Energy Generation 17 Energy Capacity 300 Matter Stores 436 Matter Capacity 450 Sight Range 20 Robot Scan Range 15 Terrain Scan Range 14 Terrain Scan Density 85 Armor Coverage 375 Resistance: KI 20 Resistance: TH 20 Resistance: EX 20 Resistance: EM 20 Resistance: I 20 Resistance: S 20 Resistance: P 20 Core Shielding 20 Weapon Shielding 33 Evasion (%) 41 Recoil Reduction 2 Energy Filtering 30 Offensive Hacking 10 Relay Coupler Types 1 Relay Coupler Value 42 Authchip Count 1 Item Schematics ----------------- None Robot Schematics ------------------ None Fabricated ------------ Adv. Thermal Generator | x2 | -7/Factory | Preloaded Alien Tech Used ----------------- None Achievements -------------- Release The Drones! Challenges ------------ None Game ------ Seed seed Manual? 1 Play Time 02:55:04 Cumulative 103.8 hours Start 2022.11.24 @ 01:21:13 End 2022.11.24 @ 04:19:52 Sessions 1 Manual Loads 0 Difficulty Adventurer Special Mode None Game No. 19 Rogue 0 Adventurer 19 Explorer 0 Win Type - Total 1 Types 1/0/0/0/0/0/0/0/0 Lore% 47 Gallery% 57 Achievement% 48 Wizard Run 0 Options --------- ASCII 0 Keyboard 0 Movement Mouse Keybinds 0 Fullscreen 1 Font 18/SmallcapsGlow Map View 76x50 Tactical HUD 1 Map Filters NONE Filters NONE Steam 1 RUN: f56e7bde-2044-4bc5-b9bf-8f852314e901